Cogmind - Beta 9.1 *** ADVENTURER MODE // 2019.11.05 @ 20:35:50 Player: WingedOwl Result: Self-destructed Performance ------------- Evolutions (4) 2000 Regions Visited (7) 1400 Robots Destroyed (65) 325 Value Destroyed (2384) 2384 Prototype IDs (4) 80 Alien Tech Used (0) 0 Bonus (240) 240 TOTAL SCORE: 6429 Bonus ------- Pacifist 200 Follower Combat Kills 40 Cogmind --------- Core Integrity 639/850 Matter 450/450 Energy 100/100 System Corruption 0% Temperature Cool (0) Location -6/Extension Parts ------- Power (2) Propulsion (4) Utility (6) Advanced Heat Sink High-capacity Storage Unit Large Matter Pod Weapon (3) Inventory (12) Ion Engine Deuterium Engine Deuterium Engine Deuterium Engine Deuterium Engine Improved Deuterium Engine Hardened Medium Armor Plating Hacking Suite Flak Gun Peak State ------------ Power Improved Deuterium Engine Improved Deuterium Engine Propulsion Improved Treads Improved Treads Improved Treads Medium Treads Utility High-capacity Storage Unit Large Matter Pod High-capacity Matter Pod Matter Filter Hardened Heavy Armor Plating Weapon Assault Cannon Assault Cannon Assault Cannon Inventory Ion Engine Deuterium Engine Deuterium Engine Deuterium Engine Deuterium Engine Improved Treads Improved Treads Hardened Medium Armor Plating Hardened Medium Armor Plating Hacking Suite Light Assault Rifle Assault Cannon [Rating: 45] Favorites ----------- Power Deuterium Engine Engine Deuterium Engine Propulsion Improved Treads Treads Improved Treads Utility Large Matter Pod Device Improved Heat Sink Storage Large Matter Pod Protection Hardened Medium Armor Plating Weapon Assault Cannon Energy Gun EM Pulse Gun Ballistic Gun Light Assault Rifle Ballistic Cannon Assault Cannon Launcher Advanced EMP Blaster Build | -11 -10 -9 -8 -8 -7 -6 -6 ------- Run | Scr Mat Mat Mat Sto Fac Fac Ext Slots Evolved 8 | . . 2 2 . 2 2 . Power 1 | . . . . . 1 . . Propulsion 2 | . . . 1 . . 1 . Utility 4 | . . 2 . . 1 1 . Weapon 1 | . . . 1 . . . . Parts Attached 36 | 6 2 9 2 1 2 3 11 Power 5 | 1 . 1 . . 1 . 2 Engine 5 | 1 . 1 . . 1 . 2 Core . | . . . . . . . . Reactor . | . . . . . . . . Propulsion 9 | 2 . 2 1 . . 1 3 Treads 9 | 2 . 2 1 . . 1 3 Leg . | . . . . . . . . Wheel . | . . . . . . . . Hover . | . . . . . . . . Flight . | . . . . . . . . Utility 12 | 1 2 3 . . 1 2 3 Device 4 | . . 2 . . . . 2 Storage 4 | 1 2 1 . . . . . Processor . | . . . . . . . . Hackware . | . . . . . . . . Protection 4 | . . . . . 1 2 1 Artifact . | . . . . . . . . Weapon 10 | 2 . 3 1 1 . . 3 Energy Gun 2 | 2 . . . . . . . Energy Cannon . | . . . . . . . . Ballistic Gun 2 | . . 1 . . . . 1 Ballistic Cannon 5 | . . 2 1 . . . 2 Launcher 1 | . . . . 1 . . . Special Weapon . | . . . . . . . . Impact Weapon . | . . . . . . . . Slashing Weapon . | . . . . . . . . Piercing Weapon . | . . . . . . . . Special Melee Weapon . | . . . . . . . . Unidentified Prototypes 2 | . . . . 1 1 . . Parts Lost 20 | . . 1 . . . 2 17 Power 2 | . . . . . . . 2 Propulsion 6 | . . . . . . . 6 Utility 5 | . . . . . . 1 4 Weapon 7 | . . 1 . . . 1 5 Highest Loss Streak 12 | . . 1 . . . 1 12 Average Slot Usage (%) 94 | . 88 97 99 100 100 92 88 Engine 12 | . 14 11 9 9 15 13 12 Treads 24 | . 28 22 26 27 23 26 24 Device 6 | . . 8 9 9 7 5 5 Storage 24 | . 17 32 27 27 23 20 19 Protection 3 | . . . . . 7 6 5 Energy Gun 4 | . 28 9 . . . . . Ballistic Cannon 14 | . . 8 27 22 15 13 17 Launcher 2 | . . . . 4 7 6 . Naked Turns . | . . . . . . . . Heaviest Build 97 | 13 44 59 64 65 81 93 97 Greatest Support 97 | 40 40 46 69 69 69 92 97 Greatest Overweight (x) 17 | 1 1 1 . . 1 1 17 Average Overweight (x) . | . . 1 . . 1 . . Largest Inventory Capacity 12 | 6 12 12 12 12 12 12 12 Average Capacity 11 | 5 7 12 12 12 12 12 12 Most Carried 12 | 2 7 12 11 12 12 12 12 Average Carried 10 | 1 2 10 10 11 11 11 10 Final Capacity 12 | 6 12 12 12 12 12 12 12 Final Carried 12 | 2 7 12 10 12 12 12 9 Class Distribution -------------------- 69% | Mutant 15% | Tank 14% | Gunner Dominant Class ---------------- Mutant | -10/Materials Mutant | -9/Materials Gunner | -8/Materials Gunner | -8/Storage Mutant | -7/Factory Tank | -6/Factory Mutant | -6/Extension Resources | -11 -10 -9 -8 -8 -7 -6 -6 ----------- Run | Scr Mat Mat Mat Sto Fac Fac Ext Matter Collected 1911 | 180 80 425 127 254 47 245 553 Remotely . | . . . . . . . . Salvage Created 2470 | . . 692 . 498 170 508 602 Parts 127 | . . 42 . 37 8 18 22 Haulers Intercepted 5 | . . 1 . 1 . 2 1 Recyclers Shooed 1 | . . . . . . . 1 Parts Field Recycled . | . . . . . . . . Retrieved Matter . | . . . . . . . . Parts Self-Destructed . | . . . . . . . . Prevented . | . . . . . . . . Kills | -11 -10 -9 -8 -8 -7 -6 -6 ------- Run | Scr Mat Mat Mat Sto Fac Fac Ext Combat Hostiles Destroyed 41 | . . 10 . 12 3 7 9 Guns 10 | . . 10 . . . . . Cannons 25 | . . . . 10 1 5 9 AOE 6 | . . . . 2 2 2 . Classes Destroyed 13 | . . 9 . 2 1 . 1 Worker 3 | . . 1 . 1 1 . . Builder 1 | . . 1 . . . . . Hauler 5 | . . 1 . 1 . 2 1 Recycler 6 | . . 1 . 1 1 . 3 Operator 4 | . . 1 . 1 1 1 . Watcher 5 | . . 3 . 1 1 . . Swarmer 8 | . . . . 4 . . 4 Grunt 19 | . . 8 . 3 2 4 2 Brawler 1 | . . 1 . . . . . Duelist 1 | . . 1 . . . . . Sentry 8 | . . . . 5 . 2 1 Hunter 2 | . . . . . 1 1 . Behemoth 2 | . . . . . . . 2 Best Kill Streak 8 | . . 3 . 8 5 3 4 Combat Bots Only 6 | . . 3 . 6 2 2 4 Max Kills in Single Turn 3 | . . 2 . 1 3 2 2 Gunslinging . | . . . . . . . . Exploded 2 | . . . . 1 2 2 . Melee . | . . . . . . . . Uniques/NPCs Destroyed . | . . . . . . . . Combat | -11 -10 -9 -8 -8 -7 -6 -6 -------- Run | Scr Mat Mat Mat Sto Fac Fac Ext Damage Taken 3570 | . . 396 . 189 27 511 2447 Core 316 | . . 93 . 12 . 24 187 Absorbed by Shields . | . . . . . . . . Core Remaining (%) 94 | 100 100 76 . 97 100 . . Volleys Fired 157 | . . 47 1 29 13 23 44 Largest 3 | . . 2 3 3 3 3 3 Hottest 132 | . . 90 132 132 124 124 132 Shots Fired 366 | . . 93 3 74 26 55 115 Gun 102 | . . 83 . . . . 19 Cannon 248 | . . 10 3 69 24 46 96 Launcher 16 | . . . . 5 2 9 . Special . | . . . . . . . . Kinetic 279 | . . 22 3 69 24 46 115 Thermal 29 | . . 29 . . . . . Explosive . | . . . . . . . . Electromagnetic 58 | . . 42 . 5 2 9 . Robot Hit Streak 36 | . . 29 1 13 9 14 36 Robot Miss Streak 3 | . . 2 2 3 1 1 1 Penetration Max . | . . . . . . . . Secondary Targets . | . . . . . . . . Shots Hit Robots 267 | . . 78 1 38 11 41 98 Core Hits 110 | . . 31 . 20 9 22 28 Critical Hits 6 | . . . . 1 . 1 4 Critical Kills 2 | . . . . 1 . . 1 Critical Parts Destroyed 2 | . . . . . . 1 1 Melee Attacks . | . . . . . . . . Impact . | . . . . . . . . Slashing . | . . . . . . . . Piercing . | . . . . . . . . Sneak Attacks . | . . . . . . . . Combat Hostiles . | . . . . . . . . Follow-up Attacks . | . . . . . . . . Damage Inflicted 6724 | . . 1325 . 959 1062 1164 2214 Guns 1022 | . . 885 . . . . 137 Cannons 4165 | . . 122 . 822 310 842 2069 Explosions 1529 | . . 318 . 137 752 322 . Melee . | . . . . . . . . Ramming 8 | . . . . . . . 8 Kinetic 4383 | . . 203 . 822 310 842 2206 Thermal 1446 | . . 657 . . 742 47 . Explosive . | . . . . . . . . Electromagnetic 887 | . . 465 . 137 10 275 . Impact . | . . . . . . . . Slashing . | . . . . . . . . Piercing . | . . . . . . . . Highest Corruption . | . . . . . . . . Average Corruption . | . . . . . . . . Corruption Purged . | . . . . . . . . Overload Shots . | . . . . . . . . Overflow Damage 326 | . . 47 . 19 196 . 64 Projectiles 97 | . . . . 19 14 . 64 Explosions 229 | . . 47 . . 182 . . Melee . | . . . . . . . . Knockbacks 21 | . . . . 2 3 5 11 Impact . | . . . . . . . . Kinetic 20 | . . . . 2 3 5 10 Secondary 1 | . . . . . . . 1 Self-Inflicted Damage 29 | . . . . . 29 . . Shots 2 | . . . . . 2 . . Rammed 1 | . . . . . . . 1 Targets Rammed 1 | . . . . . . . 1 Kicked . | . . . . . . . . Crushed . | . . . . . . . . Highest Temperature 503 | . . 243 15 60 30 94 503 Average Temperature 116 | . . 75 10 17 15 38 170 Received Heat Transfer 741 | . . 270 . 27 . 114 330 Effects 7 | . . 1 . . . . 6 Shutdowns 4 | . . . . . . . 4 Energy Bleed 2 | . . 1 . . . . 1 Damage (minor) 1 | . . . . . . . 1 Siege Activations . | . . . . . . . . Robots Corrupted . | . . . . . . . . Combat Hostiles . | . . . . . . . . Parts Fried 3 | . . . . . . 3 . Impact Corruptions . | . . . . . . . . Robots Melted . | . . . . . . . . Combat Hostiles . | . . . . . . . . Parts Melted 1 | . . 1 . . . . . Heat Transferred 1749 | . . 1199 . . 500 50 . Parts Sabotaged . | . . . . . . . . Parts Stolen . | . . . . . . . . Parts Stripped . | . . . . . . . . Power Chain Reactions 4 | . . 1 . . 1 2 . Missiles Intercepted . | . . . . . . . . Alert | -11 -10 -9 -8 -8 -7 -6 -6 ------- Run | Scr Mat Mat Mat Sto Fac Fac Ext Peak Influence 432 | . . 274 72 306 432 378 181 Average Influence 139 | . . 111 48 165 243 238 117 Maximum Alert Level 2 | . . 1 . 1 2 1 . Low Security (%) 76 | . . . . . . . . Level 1 18 | . . . . . . . . Level 2 4 | . . . . . . . . Level 3 . | . . . . . . . . Level 4 . | . . . . . . . . Level 5 . | . . . . . . . . High Security . | . . . . . . . . Max Security . | . . . . . . . . Squads Dispatched 12 | . . . . 3 2 5 2 Investigation 2 | . . . . . . 1 1 Extermination 1 | . . . . . . 1 . Reinforcement 8 | . . . . 2 2 3 1 Assault . | . . . . . . . . Garrison 1 | . . . . 1 . . . Intercept . | . . . . . . . . Construction Impeded 1 | . . . . . . . 1 Haulers Reinforced 3 | . . . . . 1 2 . Stealth | -11 -10 -9 -8 -8 -7 -6 -6 --------- Run | Scr Mat Mat Mat Sto Fac Fac Ext Distress Signals 5 | . . 2 . 1 1 . 1 Communications Jammed . | . . . . . . . . Distress Signals . | . . . . . . . . Times Spotted 70 | . . 17 1 16 6 11 19 Peak Tracking Total 7 | . . 4 1 6 2 2 7 Tactical Retreats 5 | . . 1 . . 2 . 2 Traps | -11 -10 -9 -8 -8 -7 -6 -6 ------- Run | Scr Mat Mat Mat Sto Fac Fac Ext Traps Triggered 4 | . . . . 2 . 1 1 Indirectly . | . . . . . . . . Trap Hack Attempts . | . . . . . . . . Triggered . | . . . . . . . . Disarmed . | . . . . . . . . Reprogrammed . | . . . . . . . . Reused . | . . . . . . . . Traps Extracted . | . . . . . . . . Installed . | . . . . . . . . Triggered . | . . . . . . . . Machines | -11 -10 -9 -8 -8 -7 -6 -6 ---------- Run | Scr Mat Mat Mat Sto Fac Fac Ext Machines Disabled 40 | . . 4 . 4 26 6 . Max in Single Turn 18 | . . 4 . 1 18 2 . Garrison Access 2 | . . . 1 1 . . . Machines Sabotaged . | . . . . . . . . Garrisons Compromised . | . . . . . . . . Overloaded Fab Kills . | . . . . . . . . Fab Network Shutdowns . | . . . . . . . . Hacking | -11 -10 -9 -8 -8 -7 -6 -6 --------- Run | Scr Mat Mat Mat Sto Fac Fac Ext Machines Accessed 12 | . 1 2 3 4 . . 2 Terminals 9 | . . 2 2 3 . . 2 Fabricators . | . . . . . . . . Repair Stations . | . . . . . . . . Recycling Units 1 | . 1 . . . . . . Scanalyzers . | . . . . . . . . Garrison Access 2 | . . . 1 1 . . . Total Hacks 35 | . 1 8 12 10 . . 4 Successful 23 | . 1 7 8 5 . . 2 Failed 12 | . . 1 4 5 . . 2 Catastrophic 1 | . . . 1 . . . . Database Lockouts . | . . . . . . . . Manual 16 | . . 7 4 5 . . . Terminals 32 | . . 8 11 9 . . 4 Fabricators . | . . . . . . . . Repair Stations . | . . . . . . . . Recycling Units 1 | . 1 . . . . . . Scanalyzers . | . . . . . . . . Garrison Access 2 | . . . 1 1 . . . Terminal Hacks 15 | . . 5 4 4 . . 2 Record 1 | . . . . 1 . . . Robot Analysis 1 | . . . 1 . . . . Prototype ID Bank 1 | . . 1 . . . . . Open Door 3 | . . . . 1 . . 2 Level Access Points 1 | . . 1 . . . . . Alert Level 1 | . . . 1 . . . . Unreport Threat 1 | . . . . 1 . . . Locate Traps 2 | . . 1 1 . . . . Zone Layout 4 | . . 2 1 1 . . . Fabricator Hacks . | . . . . . . . . Repair Station Hacks . | . . . . . . . . Recycling Unit Hacks 1 | . 1 . . . . . . Report Inventory 1 | . 1 . . . . . . Scanalyzer . | . . . . . . . . Garrison Access Hacks 2 | . . . 1 1 . . . Seal Access 2 | . . . 1 1 . . . Unauthorized Hacks 10 | . . 4 6 . . . . Terminals 5 | . . 2 3 . . . . Track 2 | . . 1 1 . . . . Assimilate 1 | . . . 1 . . . . Detonate 1 | . . 1 . . . . . Operators 1 | . . . 1 . . . . Fabricators . | . . . . . . . . Repair Stations . | . . . . . . . . Recycling Units . | . . . . . . . . Scanalyzers . | . . . . . . . . Garrison Access . | . . . . . . . . Data Cores Recovered 1 | . . 1 . . . . . Used . | . . . . . . . . Hacking Detections 7 | . 1 . 2 2 . . 2 Full Trace Events 1 | . . . . 1 . . . Feedback Events . | . . . . . . . . Feedback Blocked . | . . . . . . . . Robot Schematics Acquired . | . . . . . . . . Robots Built . | . . . . . . . . Matter . | . . . . . . . . Time . | . . . . . . . . Total Robot Build Rating . | . . . . . . . . Part Schematics Acquired . | . . . . . . . . Parts Built . | . . . . . . . . Matter . | . . . . . . . . Time . | . . . . . . . . Total Part Build Rating . | . . . . . . . . Parts Repaired . | . . . . . . . . Time . | . . . . . . . . Parts Recycled . | . . . . . . . . Recycled Matter . | . . . . . . . . Retrieved Matter . | . . . . . . . . Retrieved Components . | . . . . . . . . Parts Scanalyzed . | . . . . . . . . Part Schematics Acquired . | . . . . . . . . Parts Damaged . | . . . . . . . . Bothacking | -11 -10 -9 -8 -8 -7 -6 -6 ------------ Run | Scr Mat Mat Mat Sto Fac Fac Ext Used RIF Installer . | . . . . . . . . Robots Hacked . | . . . . . . . . Non-combat . | . . . . . . . . Combat . | . . . . . . . . Robot Hacks Applied . | . . . . . . . . Relay Couplers Released . | . . . . . . . . Robots Rewired . | . . . . . . . . Allies Hacked . | . . . . . . . . Hacks Repelled . | . . . . . . . . Allies | -11 -10 -9 -8 -8 -7 -6 -6 -------- Run | Scr Mat Mat Mat Sto Fac Fac Ext Total Allies 3 | . . . . . . . 3 Largest Group 2 | . . . . . . . 2 Highest-Rated Group 56 | . . . . . . . 56 Highest-Rated Ally 31 | . . . . . . . 31 Total Orders . | . . . . . . . . Ally Attacks 11 | . . . . . . . 11 Total Damage 303 | . . . . . . . 303 Kills 2 | . . . . . . . 2 Allies Corrupted . | . . . . . . . . Allies Melted . | . . . . . . . . Intel | -11 -10 -9 -8 -8 -7 -6 -6 ------- Run | Scr Mat Mat Mat Sto Fac Fac Ext Robot Analysis Total 1 | . . . 1 . . . . Derelict Logs Recovered . | . . . . . . . . Drone Launches . | . . . . . . . . Drone Recoveries . | . . . . . . . . Exploration | -11 -10 -9 -8 -8 -7 -6 -6 ------------- Run | Scr Mat Mat Mat Sto Fac Fac Ext Turns Passed 3264 | 86 169 833 131 404 464 321 856 Spaces Moved 1491 | 51 100 286 79 193 235 144 403 Core 8 | 7 . . . . . . 1 Treads 1483 | 44 100 286 79 193 235 144 402 Legs . | . . . . . . . . Wheels . | . . . . . . . . Hover . | . . . . . . . . Flight . | . . . . . . . . Fastest Speed 50 | 50 160 180 160 160 180 160 160 Average Speed 168 | 148 163 180 160 160 180 171 162 Slowest Speed 900 | 160 180 180 160 160 180 180 900 Overloaded Moves . | . . . . . . . . Propulsion Burnouts . | . . . . . . . . Robots Hopped . | . . . . . . . . Cave-ins Triggered . | . . . . . . . . Exploration Rate (%) 22 | 5 27 21 10 54 6 8 52 Regions Visited 7 Branch Regions 2 Pre-discovered Areas . | . . . . . . . . Known Exits Taken 1 | . . 1 . . . . . Unknown Exits Taken 6 | 1 1 . 1 1 1 1 . Scrap Searched . | . . . . . . . . Spaces Dug 1 | . . . . 1 . . . Terrain Destroyed 100 | . . 28 1 19 44 7 1 Melee . | . . . . . . . . Projectile 24 | . . 2 1 19 . 1 1 AOE 76 | . . 26 . . 44 6 . Actions | -11 -10 -9 -8 -8 -7 -6 -6 --------- Run | Scr Mat Mat Mat Sto Fac Fac Ext Total 1926 | 59 105 518 81 228 251 171 513 Wait 203 | . . 152 . . . . 51 Move 1484 | 50 99 285 78 192 234 143 403 Hop . | . . . . . . . . Pick Up 27 | 3 4 12 . 4 2 . 2 Fast Attach 13 | 5 1 4 . . . 1 2 Attach 15 | 1 . 1 2 . 2 2 7 Detach 3 | . . 1 . . . 2 . Swap 8 | . 1 4 . 1 . . 2 Drop 15 | . . 12 . 2 . . 1 Fire 157 | . . 47 1 29 13 23 44 Melee . | . . . . . . . . Ram . | . . . . . . . . Kick . | . . . . . . . . Crush 1 | . . . . . . . 1 Escape Stasis . | . . . . . . . . Rewire . | . . . . . . . . Trap . | . . . . . . . . Miscellaneous . | . . . . . . . . Route ------- -11/Scrapyard -10/Materials -9/Materials (discovered 3 exits: *Mat x3) -8/Materials -8/Storage -7/Factory -6/Factory -6/Extension History --------- Turn | Location | Event 46 | -11/Scrapyard | Discovered new exit (range 14) 87 | -11/Scrapyard | Entered Materials 179 | -10/Materials | Discovered new exit (range 15) 256 | -10/Materials | Entered another Materials area 256 | -9/Materials | Evolved 2 slots: Utility x2 308 | -9/Materials | Build established: Mutant 850 | -9/Materials | Discovered new exit (range 16) 879 | -9/Materials | Identified exit to Materials 1089 | -9/Materials | Entered another Materials area 1089 | -8/Materials | Evolved 2 slots: Propulsion x1, Weapon x1 1172 | -8/Materials | Discovered new exit (range 15) 1220 | -8/Materials | Entered Storage 1396 | -8/Storage | Build established: Gunner 1446 | -8/Storage | Garrison activated, responded to threat 1600 | -8/Storage | Discovered new exit (range 15) 1624 | -8/Storage | Entered Factory 1624 | -7/Factory | Evolved 2 slots: Power x1, Utility x1 2014 | -7/Factory | Discovered new exit (range 10) 2088 | -7/Factory | Entered another Factory area 2088 | -6/Factory | Evolved 2 slots: Propulsion x1, Utility x1 2382 | -6/Factory | Discovered new exit (range 16) 2409 | -6/Factory | Entered Extension 2597 | -6/Extension | Spotted B-75 Beast 2926 | -6/Extension | Rescued a captive Derelict 2927 | -6/Extension | Rescued a captive Derelict 3153 | -6/Extension | Rescued a captive Derelict 3180 | -6/Extension | Spotted B-75 Beast 3184 | -6/Extension | Disrupted transfer network 3196 | -6/Extension | Destroyed B-75 Beast 3217 | -6/Extension | Lost 3 parts (1n2w) 3247 | -6/Extension | Destroyed B-75 Beast 3265 | -6/Extension | Self-destructed Last Messages --------------- 03247_ B-75 Beast destroyed. 03252_ Acquired 24 matter. 03255_ C-30 ARC bursts open, deploying its payload. 03255_ H-66 Slayer unfolds itself. 03255_ Penetrated by Slug. 03255_ Imp. Deuterium Engine destroyed. 03255_ Penetrated by Slug. 03255_ Imp. Treads destroyed. 03256_ U-05 Engineer builds a Wall. 03257_ U-05 Engineer destroyed. 03258_ Penetrated by Slug. 03258_ Assault Cannon destroyed. 03261_ Penetrated by Slug. 03261_ Lgt. Assault Rifle destroyed. 03261_ R-10 Processor suffers critical hit. 03261_ Penetrated by Slug. 03261_ Imp. Deuterium Engine destroyed. 03263_ R-10 Processor collects Lgt. Ion Engine. 03263_ Penetrated by Slug. 03264_ Slug penetrates Earth. Map ----- +----------------------------------------------------+ | #?# ## #????????????????????????????? | | ###/##?# ## #????????????????????????????? | | #??# #####/#######????????????????????????? | | ## #????????????????????????? | | ?# ##### #????????????????????????? | | ?# #???# #????????????????????????? | | ## #???# #????????????????????????? | | #???# #????????????????????????? | | ###################???# #????????????????????????? | | ??????????????????????# #????????????????????????? | | ??????????????????????# #????????????????????????? | | ??????????????????????# #????????????????????????? | | ??????????????????????# #????????????????????????? | | ??????????????????????# #????????????????????????? | | ????????????????????### #????????????????????????? | | ??????????????????###T# #????????????????????????? | | ??????????????????# ! #????????????????????????? | | ??????????????????##### #????????????????????????? | | ???????????????????##?# #????????????????????????? | | ???????????????????? ## #????????????????????????? | | ????????????????????? # ###??????????????????????? | | ?????????????????????#; ; #??????????????????????? | | ?????????????????????## ; ###????????????????????? | | ????????????????????##;%;## ## ### #?????????????? | | ????????????????????#" %R %! "" ""????????????? | | ????????????????????# " @! " " ????????????? | | ????????????????????# =w R #???????????? | | ????????????????????# !%R #???????????? | | ##################### = #???????????? | | ?????????? | | = ??????????? | | %= ??????????? | | ! hh C ??????????? | | % R kkR% A???????????? | | ##################### #???????????? | | ????????????????????# ????????????? | | ????????????????????# ????????????? | | ????????????????????# ??????????????? | | ????????????????????# ????????????????? | | ?????????????????????#####T#""???????????????????? | | ?????????????????????????????????????????????????? | | ?????????????????????????????????????????????????? | | | | | | | | | | | | | | | | | +----------------------------------------------------+ Best States ------------- Heat Dissipation 56 Energy Generation 27 Energy Capacity 480 Matter Stores 650 Matter Capacity 650 Sight Range 16 Terrain Scan Density 10 Armor Coverage 600 Resistance: KI 20 Resistance: TH 20 Resistance: EX 20 Resistance: EM 20 Resistance: I 20 Resistance: S 20 Resistance: P 20 Evasion (%) 40 Recoil Reduction 4 Matter Filtering 30 Item Schematics ----------------- None Robot Schematics ------------------ None Fabricated ------------ Nothing Alien Tech Used ----------------- None Achievements -------------- None Challenges ------------ None Game ------ Seed ChainMetafiberReconstructor Manual? 0 Play Time 00:33:26 Cumulative 112.8 hours Start 2019.11.05 @ 20:01:50 End 2019.11.05 @ 20:35:50 Sessions 1 Manual Loads 0 Difficulty Adventurer Special Mode None Game No. 153 Rogue 151 Adventurer 1 Explorer 0 Win Type - Total 0 Types 0/0/0/0/0/0/0 Lore% 48 Gallery% 61 Achievement% 37 Wizard Run 0 Options --------- ASCII 0 Keyboard 1 Movement Arrows Keybinds 0 Fullscreen 0 Font 32/SmallcapsGlow Map View 76x50 Tactical HUD 1 Map Filters NONE Filters NONE Steam 1 RUN: 7607d133-da6b-4cf7-8117-6c40e09ee415